bitfinex-derivatives/quotes_ETHF0:USTF0_20260204
["timestamp","ask_amount","ask_price","bid_price","bid_amount"]
[1770165359877,2.52485161,2255.3,2254.1,0.13877806]
[1770165360077,2.52485161,2255.1,2254.0,2.50738505]
[1770165360279,2.52485161,2255.1,2254.1,0.13878068]
[1770165360573,2.52485161,2254.9,2253.7,2.50738505]
[1770165360781,2.52485161,2254.7,2253.3,2.50738505]
[1770165361273,2.52485161,2254.5,2253.3,2.50738505]
[1770165361674,2.52485161,2254.3,2253.3,2.50738505]
[1770165362078,9.15332336,2254.2,2253.3,2.50738505]
[1770165362278,2.52485161,2254.2,2253.3,2.50738505]
[1770165362475,6.62847175,2254.1,2253.3,2.50738505]
[1770165362777,6.62847175,2254.4,2253.3,2.72959505]
[1770165363482,2.52485161,2254.3,2253.3,2.72959505]
[1770165363782,2.52485161,2254.3,2253.1,0.00332985]
[1770165363981,2.52485161,2254.1,2253.1,0.00332985]
[1770165364879,6.62847175,2254.0,2253.1,0.00332985]
[1770165365083,2.52485161,2253.9,2253.1,0.00332985]
[1770165365281,2.52861631,2253.9,2253.1,0.00332985]
[1770165365479,2.52485161,2253.7,2253.1,0.00332985]
[1770165366281,2.52485161,2253.5,2252.7,2.72965505]
[1770165366676,2.52485161,2253.5,2252.7,2.50738505]
[1770165367078,6.62847175,2253.4,2252.7,2.50738505]
[1770165367278,6.62847175,2253.4,2252.7,0.00528267]
[1770165367478,2.52485161,2253.3,2252.4,2.50738505]
[1770165367883,6.62847175,2253.2,2252.4,2.50738505]
[1770165368081,6.62847175,2253.8,2252.7,2.50738505]
[1770165368280,9.15332336,2253.8,2252.7,2.72965505]
[1770165368582,6.62847175,2253.7,2252.9,2.50738505]
[1770165368787,6.62847175,2253.7,2253.1,2.50738505]
[1770165368980,0.0037647,2253.9,2253.1,2.50738505]
[1770165369184,6.62847175,2253.8,2253.1,2.50738505]
[1770165369687,6.62847175,2253.8,2253.1,2.72960505]
[1770165369888,0.0037647,2253.9,2253.1,2.72960505]
[1770165370188,6.63223645,2253.9,2253.1,2.72960505]
[1770165371883,2.52485161,2254.5,2253.3,2.50738505]
[1770165372184,2.52485161,2254.5,2253.3,2.72959505]
[1770165372390,6.62847175,2254.4,2253.3,2.72959505]
[1770165372681,6.62847175,2254.4,2253.5,2.50738505]
[1770165372882,6.63309784,2254.4,2253.5,2.50738505]
[1770165373284,6.63309784,2254.4,2253.5,2.72957505]
[1770165373984,9.15794945,2254.4,2253.5,2.72957505]
[1770165374190,2.52485161,2254.3,2253.2,2.50738505]
[1770165374591,2.52485161,2254.1,2253.2,2.50738505]
[1770165374793,6.62847175,2254.2,2253.4,2.50738505]
[1770165375087,0.00462609,2254.4,2253.4,2.50738505]
[1770165375088,6.62847175,2254.0,2253.4,2.50738505]
[1770165375392,6.62847175,2254.3,2253.4,2.50738505]
[1770165377388,6.62847175,2254.3,2253.4,2.72958505]
[1770165377588,10.288,2255.2,2254.1,2.50738505]
[1770165377794,2.52485161,2255.3,2254.1,2.50738505]
[1770165377991,2.52485161,2255.1,2254.1,2.50738505]
[1770165378390,6.1294388,2255.0,2254.1,2.50738505]
[1770165378593,2.52485161,2254.9,2254.0,0.22214]
[1770165378990,6.1294388,2254.8,2254.0,2.72952505]
[1770165382698,0.00416661,2255.0,2254.2,2.44485614]
[1770165382998,2.4339791,2255.7,2254.4,2.44485614]
[1770165383493,2.4339791,2255.7,2254.6,0.22208]
[1770165383696,1.6839791,2255.7,2254.6,2.66693614]
[1770165383893,1.6882619,2255.7,2254.6,2.67046043]
[1770165384498,1.6882619,2255.7,2254.6,2.44838043]
[1770165384990,0.0042828,2255.7,2254.6,2.67046043]
[1770165385193,0.0042828,2255.7,2254.8,2.44485614]
[1770165386698,0.0042828,2255.7,2255.0,2.66690614]
[1770165386899,2.4339791,2256.2,2255.2,2.66687614]
[1770165387095,2.78610616,2256.5,2255.4,2.44485614]
[1770165387496,2.4339791,2256.5,2255.4,2.44485614]
[1770165388097,2.4395686,2256.5,2255.4,2.44485614]
[1770165388498,2.4395686,2256.5,2254.9,4.42212579]
[1770165388499,2.6614686,2256.5,2254.9,4.42212579]
[1770165388692,2.4339791,2256.0,2254.6,2.44838043]
[1770165388896,2.4339791,2256.0,2254.6,2.67046043]
[1770165390599,2.4339791,2256.0,2254.6,0.22560429]
[1770165390600,2.6559291,2256.0,2254.6,0.22560429]
[1770165390799,2.6559291,2256.0,2254.6,2.67046043]
[1770165391000,2.6559291,2256.0,2254.6,0.00352429]
[1770165391602,2.6559291,2256.0,2254.6,2.44838043]
[1770165393097,2.4339791,2256.0,2254.8,0.22206]
[1770165393300,2.4339791,2256.3,2254.9,2.44485614]
[1770165393495,2.4339791,2256.3,2255.1,2.44485614]
[1770165393698,2.4339791,2257.2,2255.5,2.44485614]
[1770165393901,2.4339791,2257.0,2255.5,2.66684614]
[1770165394498,2.4395686,2257.0,2255.8,2.44485614]
[1770165394700,2.4339791,2257.0,2255.8,2.44485614]
[1770165394900,2.4339791,2256.8,2255.8,2.44485614]
[1770165395300,0.00373617,2257.0,2255.8,2.44485614]
[1770165395796,0.00373617,2257.0,2256.2,2.44485614]
[1770165396003,2.43771527,2257.0,2256.2,0.00450826]
[1770165396198,0.0055895,2256.8,2256.2,0.00450826]
[1770165396400,0.0055895,2256.9,2256.2,0.00450826]
[1770165396600,0.00932567,2257.0,2256.2,2.4493644]
[1770165396801,0.0055895,2256.9,2256.2,0.00450826]
[1770165397202,0.0055895,2256.6,2255.4,2.66685614]
[1770165397402,2.4339791,2256.8,2255.8,2.44485614]
[1770165397705,0.00373617,2257.0,2255.8,2.44485614]
[1770165398105,0.00373617,2257.0,2255.8,2.45041241]
[1770165399705,2.4339791,2256.8,2255.8,0.00555627]
[1770165399902,0.0055895,2256.8,2255.9,2.44485614]
[1770165400206,2.4395686,2256.7,2255.9,2.44485614]
[1770165400407,2.4339791,2256.7,2255.9,2.44485614]
[1770165400604,0.0055895,2256.6,2255.9,2.44485614]
[1770165400902,2.4339791,2255.8,2254.6,2.44485614]
[1770165401801,2.4339791,2255.8,2254.6,2.4497896]
[1770165402007,2.4339791,2256.1,2254.6,2.6718696]
[1770165403006,2.4339791,2255.9,2254.6,2.6718696]
[1770165403300,2.602,2256.2,2254.6,2.6718696]
[1770165403500,2.4339791,2256.1,2254.6,2.6718696]
[1770165403700,2.4395686,2256.1,2254.6,2.6718696]
[1770165404106,2.4339791,2256.1,2254.8,2.44485614]
[1770165404506,2.4395686,2256.1,2254.8,2.44485614]
[1770165404709,2.41440759,2256.1,2254.8,2.44485614]
[1770165405704,2.602,2256.2,2254.8,2.44485614]
[1770165405908,0.0055895,2255.9,2254.8,2.44485614]
[1770165406304,0.0055895,2255.8,2254.8,2.44485614]
[1770165406609,2.4339791,2255.8,2254.8,2.44485614]
[1770165406807,2.4395686,2255.7,2254.8,2.44485614]
[1770165407007,2.4339791,2255.7,2254.8,2.44485614]
[1770165407203,2.4395686,2255.7,2254.8,2.44485614]
[1770165407407,2.4339791,2255.6,2254.6,0.00493346]
[1770165407903,0.0055895,2255.5,2254.6,0.00493346]
[1770165408209,0.0055895,2255.5,2254.6,2.4497896]
[1770165408907,2.4395686,2255.2,2254.6,1e-08]
[1770165409109,2.4339791,2255.2,2254.6,1e-08]
[1770165409406,2.4395686,2254.9,2254.0,6.88185614]
[1770165409603,2.4339791,2254.9,2254.0,6.88185614]
[1770165409808,0.0055895,2254.8,2254.0,6.88185614]
[1770165410207,0.0055895,2254.7,2254.0,2.44485614]
[1770165410400,0.0055895,2254.7,2252.6,11.5281024]
[1770165410401,2.4395686,2254.3,2253.4,2.44485614]
[1770165410603,2.42334817,2254.6,2253.4,2.44485614]
[1770165410804,2.42334817,2254.5,2253.4,2.44485614]
[1770165411211,2.42334817,2254.4,2253.4,2.44485614]
[1770165411502,0.00328404,2254.7,2253.4,2.44865501]
[1770165411702,0.00328404,2254.7,2253.6,2.60227123]
[1770165412108,2.42663221,2254.7,2253.6,2.60227123]
[1770165412305,0.0055895,2254.6,2253.6,2.60227123]
[1770165412609,0.00328404,2254.7,2253.6,2.60227123]
[1770165412806,2.42104271,2254.7,2253.6,2.38009123]
[1770165413006,0.0055895,2254.4,2253.6,2.38009123]
[1770165413411,0.0055895,2254.3,2253.6,2.38009123]
[1770165413606,0.0055895,2254.4,2253.6,2.38009123]
[1770165414109,0.0055895,2254.3,2253.6,2.38009123]
[1770165414307,2.42104271,2254.7,2253.6,2.38009123]
[1770165414308,0.0055895,2254.4,2253.6,2.38009123]
[1770165414702,0.0055895,2254.2,2253.6,2.38009123]
[1770165414905,2.42104271,2254.7,2253.6,2.38009123]
[1770165415100,0.00887354,2254.7,2253.6,2.38009123]
[1770165415707,2.46303822,2254.7,2253.6,2.38009123]
[1770165415903,0.0055895,2254.6,2253.6,2.38009123]
[1770165416706,0.0055895,2254.5,2253.6,2.38009123]
[1770165416912,0.0055895,2254.6,2253.6,2.38009123]
[1770165417413,0.0055895,2254.5,2253.6,2.38009123]
[1770165417610,0.0055895,2254.6,2253.6,2.38009123]
[1770165418211,0.00328404,2254.7,2253.6,2.38009123]
[1770165420310,0.0055895,2254.6,2253.6,2.38009123]
[1770165420911,0.0055895,2254.6,2253.6,2.60227123]
[1770165421110,0.00328404,2254.7,2253.8,2.50029133]
[1770165421614,0.0055895,2254.6,2253.8,2.50029133]
[1770165422010,0.0055895,2254.5,2253.8,2.50029133]
[1770165422214,0.0055895,2254.6,2253.8,2.50029133]
[1770165422413,2.45416468,2254.6,2253.7,2.72246133]
[1770165422714,0.0055895,2254.2,2253.4,2.5040902]
[1770165422914,2.45975418,2254.4,2253.4,2.5040902]
[1770165423213,0.0055895,2254.2,2253.4,2.5040902]
[1770165423615,0.0055895,2254.0,2253.4,2.5040902]
[1770165423914,0.0055895,2254.1,2253.4,2.5040902]
[1770165424408,2.45416468,2254.4,2253.4,0.00379887]
[1770165424614,2.45416468,2253.9,2252.8,2.50029133]
[1770165424815,0.0055895,2253.6,2252.8,2.50029133]
[1770165425307,2.45416468,2253.9,2252.8,2.50029133]
[1770165425308,0.0055895,2253.4,2252.8,2.50029133]
[1770165425513,0.0055895,2253.6,2252.8,2.50029133]
[1770165425716,10.288,2254.3,2252.9,2.50029133]
[1770165425916,2.45416468,2254.5,2253.3,2.50029133]
[1770165426212,2.45416468,2254.3,2253.3,2.50029133]
[1770165426516,2.45975418,2254.2,2253.3,2.50029133]
[1770165427016,0.0055895,2253.9,2253.3,2.50029133]
[1770165427216,2.45416468,2254.5,2253.3,2.50029133]
[1770165427517,0.0055895,2254.3,2253.3,2.50029133]
[1770165427919,0.0055895,2253.6,2252.9,2.50029133]
[1770165428117,2.45975418,2254.1,2252.9,2.50029133]
[1770165428419,0.0055895,2254.1,2252.9,2.72254133]
[1770165428615,2.45416468,2254.4,2253.1,2.50029133]
[1770165428807,2.45416468,2254.2,2253.1,2.50029133]
[1770165429012,2.45975418,2254.1,2253.1,2.50029133]
[1770165429209,2.45416468,2254.1,2252.8,0.00325527]
[1770165429418,0.0055895,2253.7,2252.8,2.5035466]
[1770165429616,2.45416468,2254.1,2252.8,2.5035466]
[1770165429809,0.0055895,2253.9,2252.8,2.5035466]
[1770165430013,0.0055895,2253.8,2252.8,2.5035466]
[1770165430413,0.0055895,2253.7,2252.8,2.5035466]
[1770165430614,0.0055895,2253.8,2252.8,2.5035466]
[1770165430912,0.0055895,2254.0,2253.2,2.50029133]
[1770165431111,0.0055895,2254.1,2253.2,2.50029133]
[1770165431311,0.0055895,2254.1,2253.3,2.50029133]
[1770165431519,2.45416468,2254.3,2253.3,2.50029133]
[1770165431712,0.0055895,2254.2,2253.3,2.50029133]
[1770165431916,0.0055895,2254.0,2253.3,2.50029133]
[1770165432316,2.45416468,2254.0,2253.0,2.72253133]
[1770165432516,0.0055895,2253.9,2253.0,2.72253133]
[1770165432714,2.45975418,2254.3,2253.0,2.72253133]
[1770165432913,0.0055895,2254.1,2253.0,2.72253133]
[1770165433316,0.0055895,2254.0,2253.0,2.72253133]
[1770165433510,0.0055895,2254.1,2253.0,2.72253133]
[1770165434019,0.0055895,2254.0,2253.0,2.72253133]
[1770165434219,2.45416468,2254.3,2253.0,2.72253133]
[1770165434220,0.0055895,2254.1,2253.0,2.72253133]
[1770165434817,0.0055895,2254.0,2253.0,2.72253133]
[1770165435114,0.0055895,2253.8,2253.0,2.50029133]
[1770165435314,0.0055895,2253.6,2253.0,2.50029133]
[1770165435619,0.0055895,2253.5,2253.0,2.50029133]
[1770165435819,10.288,2254.3,2253.0,2.50029133]
[1770165436016,0.0055895,2254.1,2253.0,2.72253133]
[1770165436420,0.0055895,2254.0,2253.0,2.72253133]
[1770165436620,0.0055895,2254.1,2253.0,2.72253133]
[1770165437218,0.0055895,2254.0,2253.0,2.72253133]
[1770165437422,2.45416468,2254.4,2253.0,2.72253133]
[1770165437621,0.0055895,2254.1,2253.2,2.50029133]
[1770165438021,0.0055895,2253.9,2253.2,2.50029133]
[1770165438323,0.0055895,2254.4,2253.4,2.72249133]
[1770165438823,0.0055895,2254.1,2253.4,2.72249133]
[1770165439225,0.0055895,2254.0,2253.4,2.72249133]
[1770165439424,2.45416468,2254.4,2253.4,2.72249133]
[1770165439621,0.0055895,2254.2,2253.4,2.72249133]
[1770165439922,0.0055895,2254.2,2253.4,2.50029133]
[1770165440118,2.45416468,2254.4,2253.2,2.50029133]
[1770165440326,0.0055895,2254.2,2253.2,5.08715204]
[1770165440622,0.0055895,2254.3,2253.3,2.50029133]
[1770165440823,0.0055895,2254.4,2253.3,2.50029133]
[1770165441119,0.0055895,2254.3,2253.3,2.50029133]
[1770165441417,0.0055895,2254.1,2253.3,2.50029133]
[1770165441823,0.0055895,2253.8,2253.3,2.50029133]
[1770165442023,0.0055895,2254.0,2253.3,2.50029133]
[1770165442325,0.0055895,2254.1,2253.3,2.50029133]
[1770165442725,0.0055895,2254.0,2253.3,2.50029133]
[1770165442932,2.40562799,2254.5,2253.3,2.50029133]
[1770165444027,0.00328404,2254.7,2253.5,2.47639493]
[1770165444434,18.75123432,2255.4,2253.9,2.47639493]
[1770165444729,2.40562799,2255.4,2254.2,2.47639493]
[1770165445227,2.40562799,2255.7,2254.2,2.47639493]
[1770165445430,2.41009804,2255.7,2254.3,2.47639493]
[1770165445726,2.40562799,2255.5,2254.3,2.47639493]
[1770165446529,2.62762799,2255.5,2254.1,2.47639493]
[1770165446731,2.5963128,2255.6,2254.1,2.47639493]
[1770165446732,2.40562799,2255.3,2254.1,2.47639493]
[1770165449228,2.62764799,2255.3,2254.1,2.47639493]
[1770165449933,2.40562799,2255.1,2253.8,2.47639493]
[1770165451133,2.62767799,2255.1,2253.8,2.47639493]
[1770165453639,2.40562799,2254.9,2253.8,2.47639493]
[1770165456739,6.84462799,2255.0,2253.8,2.47639493]
[1770165456941,2.40562799,2254.9,2253.8,2.69855493]
[1770165458341,4.439,2255.0,2253.8,2.69855493]
[1770165459340,6.84462799,2255.0,2253.8,2.69855493]
[1770165460245,2.62764799,2255.3,2254.0,2.47639493]
[1770165460745,2.40562799,2255.9,2254.4,5.06899853]
[1770165461043,2.40562799,2255.9,2254.9,2.47639493]
[1770165461239,2.40562799,2256.2,2254.9,2.47639493]
[1770165461439,2.41009804,2255.7,2254.9,2.47639493]
[1770165461637,0.00447005,2255.7,2254.9,2.47639493]
[1770165462644,0.00447005,2255.7,2255.1,2.47639493]
[1770165462845,2.40562799,2256.6,2255.3,2.47639493]
[1770165463546,0.22188,2256.8,2255.3,2.47639493]
[1770165463846,0.22188,2256.8,2255.3,2.69840493]
[1770165463847,0.00414133,2256.8,2255.3,2.69840493]
[1770165464145,2.40976932,2256.8,2255.3,2.69840493]
[1770165468851,2.40976932,2256.8,2255.3,2.47639493]
[1770165468852,2.40562799,2256.6,2255.3,2.47639493]
[1770165469052,2.62751799,2256.6,2255.3,2.47639493]
[1770165469249,2.40562799,2256.2,2255.0,2.47639493]
[1770165469644,2.40562799,2256.0,2255.0,2.47639493]
[1770165469845,2.603,2256.1,2255.0,2.47639493]
[1770165470245,2.40562799,2256.3,2255.0,2.47639493]
[1770165472456,2.3400279,2256.1,2255.0,2.47639493]
[1770165472757,2.3400279,2255.7,2254.5,2.48036442]
[1770165472955,0.22197,2255.8,2254.5,2.48036442]
[1770165473356,2.3400279,2256.0,2254.7,2.48036442]
[1770165475055,2.5619479,2256.3,2254.7,2.70243442]
[1770165475254,6.2889479,2256.3,2254.7,2.48036442]
[1770165475555,6.0670279,2256.3,2255.0,2.33524472]
[1770165475756,2.41811434,2256.2,2255.0,2.33524472]
[1770165476257,2.41811434,2256.2,2255.0,2.55728472]
[1770165476952,2.41811434,2256.2,2254.7,2.33524472]
[1770165477157,2.41811434,2256.0,2254.7,2.33524472]
[1770165477353,2.41811434,2255.4,2254.4,0.00528118]
[1770165477549,2.41811434,2255.3,2254.4,0.00528118]
[1770165477955,2.41811434,2255.3,2254.4,2.3405259]
[1770165479249,2.41811434,2255.3,2254.4,0.00528118]
[1770165480057,2.64013434,2255.3,2254.4,0.00528118]
[1770165480956,2.41811434,2255.6,2254.4,2.3405259]
[1770165481157,2.41811434,2255.5,2254.4,2.3405259]
[1770165481359,2.41811434,2255.5,2254.4,0.00528118]
[1770165481659,2.41811434,2255.5,2254.4,2.3405259]
[1770165482359,2.41811434,2255.9,2254.4,2.3405259]
[1770165483261,2.41811434,2255.7,2254.4,0.00528118]
[1770165483453,2.603,2256.0,2253.8,2.33524472]
[1770165483454,2.64015434,2255.1,2253.8,2.33524472]
[1770165483657,2.41811434,2254.9,2253.8,2.33524472]
[1770165484554,2.64017434,2254.9,2253.8,2.34078004]
[1770165484760,2.64435724,2254.9,2253.8,0.00553532]
[1770165485461,2.64435724,2254.9,2253.8,2.34078004]
[1770165485860,2.42229724,2254.9,2253.8,2.34078004]
[1770165486159,0.0041829,2254.9,2253.8,2.34078004]
[1770165486358,2.42229724,2254.9,2253.8,2.34078004]
[1770165487961,0.0041829,2254.9,2253.8,2.34078004]
[1770165488262,2.42229724,2254.9,2253.8,0.00553532]
[1770165488662,2.64435724,2254.9,2253.8,0.00553532]
[1770165489362,2.41811434,2254.7,2253.8,0.00553532]
[1770165490660,0.22207,2254.8,2253.8,2.34078004]
[1770165490661,2.41811434,2254.8,2253.8,2.34078004]
[1770165491558,0.0041829,2254.9,2253.8,2.34078004]
[1770165492568,2.42229724,2254.9,2253.8,2.34078004]
[1770165493367,2.64435724,2254.9,2253.8,0.00553532]
[1770165494068,2.64435724,2254.9,2253.8,2.34078004]
[1770165495364,0.0041829,2254.9,2253.8,2.34078004]
[1770165495669,0.0041829,2254.9,2254.0,2.33524472]
[1770165496062,2.41811434,2255.5,2254.0,2.33524472]
[1770165496463,2.41811434,2255.6,2254.0,2.33524472]
[1770165497163,2.4237855,2255.6,2254.0,2.33524472]
[1770165497366,2.4237855,2255.6,2254.3,2.33524472]
[1770165497569,2.4237855,2255.6,2254.4,0.2221]
[1770165497872,0.00567116,2255.6,2254.5,2.33524472]
[1770165498671,2.4237855,2255.6,2254.2,2.33524472]
[1770165498970,2.64012434,2255.4,2254.2,2.33524472]
[1770165500072,2.41811434,2255.4,2254.2,2.33524472]
[1770165500367,2.41811434,2255.4,2254.1,0.22213]
[1770165500368,0.00567116,2255.6,2254.4,2.33524472]
[1770165501166,2.53975987,2255.6,2254.4,2.33524472]
[1770165502875,2.53975987,2255.6,2254.0,2.47992491]
[1770165503276,2.53408871,2255.4,2254.0,2.47992491]
[1770165504175,2.53408871,2255.3,2254.0,2.47992491]
[1770165504376,2.75610871,2255.3,2254.0,2.47992491]
[1770165505679,2.53408871,2255.1,2253.8,0.00553532]
[1770165505879,2.75614871,2254.9,2253.8,0.00553532]
[1770165506079,2.53408871,2254.9,2253.8,0.00553532]
[1770165506682,2.53408871,2254.9,2253.2,2.5926036]
[1770165506881,2.53408871,2254.5,2253.1,2.47992491]
[1770165507082,2.53408871,2254.3,2253.1,2.47992491]
[1770165507382,5.13708871,2254.2,2253.1,2.47992491]
[1770165507882,5.13708871,2254.2,2253.1,2.48398231]
[1770165508482,2.603,2254.2,2253.1,2.48398231]
[1770165509777,2.53408871,2254.3,2253.1,2.48398231]
[1770165511180,2.53408871,2254.7,2253.1,2.48398231]
[1770165511380,2.75613871,2255.0,2253.3,2.47992491]
[1770165511579,2.75613871,2255.0,2253.4,2.47992491]
[1770165511883,2.53408871,2255.0,2253.6,2.70210491]
[1770165512676,2.53408871,2255.0,2253.3,2.47992491]
[1770165512880,2.53408871,2254.6,2253.3,2.47992491]
[1770165516990,2.53408871,2254.6,2253.4,2.47992491]
[1770165520692,2.53408871,2254.6,2253.1,5.07658591]
[1770165520693,2.53408871,2254.5,2253.1,5.07658591]
[1770165520893,2.53408871,2254.3,2253.1,2.48398231]
[1770165521098,2.53408871,2254.2,2253.1,2.48398231]
[1770165522598,2.82612,2254.3,2253.1,2.48398231]
[1770165522798,2.53408871,2254.2,2253.1,2.48398231]
[1770165532811,0.22214,2254.1,2253.1,0.0040574]
[1770165533007,2.75244376,2254.0,2253.1,0.0040574]
[1770165533207,2.75620318,2254.0,2253.1,0.0040574]
[1770165533512,2.75620318,2254.0,2253.1,2.50104936]
[1770165534104,2.75620318,2254.0,2253.1,0.0040574]
[1770165534512,7.63520318,2254.0,2253.1,0.0040574]
[1770165534707,2.53029376,2253.9,2253.1,0.0040574]
[1770165540316,2.53029376,2253.9,2252.8,2.48724278]
[1770165540615,2.53029376,2253.9,2252.6,2.70952278]
[1770165541318,2.53029376,2253.9,2252.6,2.71333195]
[1770165541818,5.10490942,2254.0,2252.6,0.00380917]
[1770165541819,2.42915776,2253.7,2252.6,0.00380917]
[1770165542317,2.42915776,2253.5,2252.6,0.00380917]
[1770165542617,2.65134776,2253.5,2252.6,0.00380917]
[1770165543520,2.42915776,2253.8,2252.6,2.49105195]
[1770165543722,0.22590942,2254.0,2252.6,2.49105195]
[1770165543723,2.43291718,2254.0,2252.8,2.48724278]
[1770165543912,0.00375942,2254.0,2252.9,2.48724278]
[1770165544117,2.42915776,2254.5,2253.1,2.70947278]
[1770165544819,2.65125776,2254.5,2253.1,2.48724278]
[1770165545019,2.65556157,2254.5,2253.1,2.48724278]
[1770165547924,2.42915776,2254.3,2253.1,2.48724278]
[1770165552124,2.42915776,2254.1,2253.1,2.48724278]
[1770165552429,2.42915776,2253.9,2252.6,5.09384394]
[1770165552727,2.42915776,2253.9,2252.6,2.49105195]
[1770165552928,2.65135776,2253.5,2252.6,2.49105195]
[1770165553226,2.42915776,2253.4,2252.6,2.49105195]
[1770165554030,2.991,2253.5,2252.6,2.49105195]
[1770165556022,0.22215,2253.9,2252.6,2.49105195]
[1770165556230,2.42915776,2254.1,2252.6,2.71333195]
[1770165556424,2.42915776,2254.1,2252.7,2.48724278]
[1770165557725,2.65129776,2254.1,2252.7,2.48724278]
[1770165558923,2.42915776,2253.8,2252.6,0.00380917]
[1770165559130,2.42915776,2253.7,2252.6,0.00380917]
[1770165559330,2.42915776,2253.7,2252.6,2.49105195]
[1770165559530,2.65133776,2253.7,2252.6,2.49105195]
[1770165560028,2.42915776,2253.7,2252.6,2.49105195]
[1770165560224,2.42915776,2254.0,2252.6,2.49105195]
[1770165560429,2.42915776,2254.0,2252.7,2.70951278]
[1770165560624,2.29573703,2254.3,2252.9,2.31554172]
[1770165561026,2.29573703,2254.3,2253.0,2.31554172]
[1770165561825,0.00430381,2254.5,2253.0,2.53778172]
[1770165562023,2.30004084,2254.5,2253.0,2.53778172]
[1770165562233,2.29573703,2254.4,2253.0,2.53778172]
[1770165568531,2.29573703,2254.4,2253.0,2.31554172]
[1770165568735,0.00430381,2254.5,2253.3,2.31554172]
[1770165570442,0.00430381,2254.5,2253.4,0.2222]
[1770165570638,2.29573703,2255.1,2253.7,2.31554172]
[1770165571241,2.29573703,2254.9,2253.7,2.31554172]
[1770165571442,2.51781703,2254.7,2253.3,2.31554172]
[1770165571642,2.29573703,2254.4,2253.3,2.31554172]
[1770165571841,2.29573703,2254.3,2253.3,2.31554172]
[1770165572036,2.51787703,2254.1,2252.9,2.31554172]
[1770165572237,2.51791703,2253.7,2252.6,2.31935089]
[1770165572444,2.29573703,2253.5,2252.6,2.31935089]
[1770165572642,2.29573703,2253.3,2252.2,2.31554172]
[1770165572944,2.29573703,2253.1,2251.9,2.31554172]
[1770165573445,4.441,2253.3,2251.9,2.31554172]
[1770165573745,0.00444825,2253.3,2252.0,2.31554172]
[1770165574044,0.00444825,2253.3,2252.3,2.31554172]
[1770165574643,0.00444825,2253.3,2252.3,2.53785172]
[1770165575340,0.00444825,2253.3,2252.3,2.31554172]
[1770165576443,6.62850702,2254.1,2252.3,2.31554172]
[1770165576643,2.29573703,2254.2,2252.7,2.31554172]
[1770165577544,2.30013961,2254.2,2252.7,2.31554172]
[1770165578945,2.29573703,2254.1,2252.7,2.31554172]
[1770165579244,2.51787703,2254.1,2252.7,2.31554172]
[1770165580847,2.29573703,2253.9,2252.7,2.31554172]
[1770165581947,0.00440258,2254.2,2252.9,0.22224]
[1770165582141,0.00440258,2254.2,2253.2,2.31554172]
[1770165582848,2.30013961,2254.2,2253.2,2.31554172]
[1770165584753,0.00440258,2254.2,2253.2,2.31554172]
[1770165585953,2.29573703,2254.9,2253.6,2.31554172]
[1770165586844,2.30027396,2254.9,2253.6,2.31963603]
[1770165587550,0.00453693,2254.9,2253.8,2.31554172]
[1770165589852,2.30027396,2254.9,2253.8,2.31554172]
[1770165590652,0.00453693,2254.9,2253.8,2.31554172]
[1770165590848,0.00054779,2254.9,2254.0,2.56438058]
[1770165591151,0.00054779,2254.9,2254.2,2.34224058]
[1770165591950,2.6646205,2255.7,2254.2,2.56436058]
[1770165592148,2.6646205,2255.7,2254.4,2.34224058]
[1770165592353,2.4426405,2255.7,2254.4,2.34224058]
[1770165592848,2.4426405,2256.0,2254.7,2.34224058]
[1770165593050,2.4476379,2256.0,2254.7,2.34224058]
[1770165593451,0.0049974,2256.0,2254.7,2.34224058]
[1770165593847,2.4476379,2256.0,2254.7,2.34224058]
[1770165597155,2.1976379,2256.0,2254.7,2.34224058]
[1770165598253,2.42407253,2256.0,2254.7,2.34224058]
[1770165599655,0.00448463,2256.0,2255.1,2.36316298]
[1770165599854,2.29680656,2257.0,2255.7,2.36316298]
[1770165600049,2.51865656,2257.0,2255.7,2.36316298]
[1770165600856,2.52400107,2257.0,2255.7,2.36837511]
[1770165601059,2.29680656,2256.6,2255.7,0.00521213]
[1770165601358,2.29680656,2256.4,2255.7,0.00521213]
[1770165601558,2.29680656,2256.4,2254.8,2.36316298]
[1770165601759,2.29680656,2256.2,2254.8,2.36316298]
[1770165601955,2.51873656,2256.2,2254.8,2.36316298]
[1770165602558,2.51873656,2256.2,2254.8,2.3686026]
[1770165604060,2.29680656,2256.0,2254.8,2.3686026]
[1770165604262,2.51877656,2255.8,2254.8,0.00543962]
[1770165604459,2.51879656,2255.6,2254.8,0.00543962]
[1770165604661,2.29680656,2255.4,2254.2,2.36316298]
[1770165605258,2.29680656,2255.1,2253.7,2.36316298]
[1770165605652,2.51886656,2254.9,2253.7,2.36672878]
[1770165610061,2.51886656,2254.9,2253.7,0.0035658]
[1770165610559,2.29680656,2254.2,2252.8,4.96198097]
[1770165610756,2.29680656,2253.8,2252.6,2.36316298]
[1770165611065,2.51897656,2253.8,2252.6,2.36316298]
[1770165611561,2.51897656,2253.8,2252.6,0.00445425]
[1770165611964,2.51899656,2253.5,2252.0,2.36316298]
[1770165613063,2.52378737,2253.5,2252.0,2.36691551]
[1770165613762,2.29680656,2253.3,2252.0,2.36691551]
[1770165613963,7.042,2253.2,2252.0,2.36691551]
[1770165614164,9.33880656,2253.2,2252.0,2.36691551]
[1770165614764,2.29680656,2253.1,2252.0,2.36691551]
[1770165617968,2.51904656,2253.1,2252.0,0.00375253]
[1770165618267,2.29680656,2252.7,2251.4,2.36316298]
[1770165618664,2.51907656,2252.7,2251.4,2.36316298]
[1770165619464,2.51907656,2252.7,2251.4,2.36777734]
[1770165620567,2.32591249,2252.6,2251.4,2.36777734]
[1770165621869,0.00479081,2253.5,2251.4,2.36777734]
[1770165621870,2.54813249,2253.3,2251.4,2.36777734]
[1770165622062,4.442,2253.3,2251.9,2.47881424]
[1770165622670,4.442,2253.3,2252.1,2.47881424]
[1770165622973,2.32591249,2252.9,2251.8,2.47881424]
[1770165623264,4.93091249,2252.8,2251.8,2.47881424]
[1770165623469,2.32591249,2252.7,2251.8,2.47881424]
[1770165624464,2.605,2252.8,2251.8,2.47881424]
[1770165625068,2.32591249,2253.3,2251.8,2.47881424]
[1770165625370,2.605,2253.2,2251.8,2.47881424]
[1770165625572,0.00479081,2253.5,2252.0,2.47881424]
[1770165626565,0.00479081,2253.5,2251.7,7.047]
[1770165626566,0.00479081,2253.5,2252.2,2.47881424]
[1770165627072,0.00479081,2253.5,2252.4,2.47881424]
[1770165627569,2.32591249,2254.3,2252.4,2.47881424]
[1770165627774,2.32591249,2254.3,2252.6,2.47881424]
[1770165628271,2.54806249,2253.7,2252.6,2.47881424]
[1770165628772,0.0039501,2253.7,2252.6,2.47881424]
[1770165629478,2.32986259,2253.7,2252.6,2.47881424]
[1770165632577,2.32591249,2253.5,2252.6,2.47881424]
[1770165632782,2.32591249,2253.5,2251.9,2.47881424]
[1770165633277,2.54809249,2253.5,2251.9,2.47881424]
[1770165633472,2.54810249,2253.3,2251.9,2.47881424]
[1770165634070,2.32591249,2253.0,2251.6,2.47881424]
[1770165635073,2.32591249,2253.3,2251.6,2.47881424]
[1770165635279,2.32591249,2253.1,2251.6,2.47881424]
[1770165639274,2.32591249,2253.1,2251.7,2.47881424]
[1770165640279,5.07491249,2253.1,2251.9,2.47881424]